[Event "ECo-C Extraliga 2023-24"]
[Site "Slovakia"]
[Date "2024.02.24"]
[Round "7.4"]
[White "Nadzamova, Viktoria"]
[Black "Krak, Tomas"]
[Result "1/2-1/2"]
[ECO "B59"]
[WhiteElo "2079"]
[BlackElo "2264"]
[Annotator "TA"]
[PlyCount "114"]
[EventDate "2023.10.06"]
[EventType "team-tourn"]
[EventCountry "SVK"]
[SourceTitle "playchess.com"]
[Source "ChessBase"]
[SourceQuality "1"]
[TimeControl "40/5400+30:1800+30"]

{[%evp 22,114,0,-23,-26,-28,-30,-45,-18,-37,-34,-129,-24,-30,-35,-28,0,0,0,0,0,0,0,0,0,0,0,0,0,16,35,0,0,0,0,0,0,-51,0,-59,-62,-60,0,-43,0,-43,0,-43,-43,-43,-43,-43,-56,-50,-50,-70,-23,-14,-5,-36,0,-8,39,45,64,-54,0,0,0,0,0,0,24,10,10,24,32,32,75,85,241,-29985,-29986,-29986,-29987,-29987,-29988,-29993,-29994,-29994,-29995,-29995,0,0,0]} 1. e4 {[%emt 0:00:03]} c5 {[%emt 0:00:05]} 2. Nf3 {[%emt 0:00:06]} Nc6 {[%emt 0:00:06]} 3. d4 {[%emt 0:00:31]} cxd4 {[%emt 0:00:08]} 4. Nxd4 {[%emt 0:00:07]} Nf6 {[%emt 0:00:14]} 5. Nc3 {[%emt 0:00:44]} d6 {[%emt 0:00:13]} 6. Be2 {[%emt 0:01:32]} e5 {[%emt 0:00:17]} 7. Nb3 {[%emt 0:00:49]} Be7 {[%emt 0:00:07]} 8. Be3 {[%emt 0:00:24]} O-O {[%emt 0:01:39]} 9. O-O {[%emt 0:02:44]} a5 {[%emt 0:00:18]} 10. a4 {[%emt 0:00:56]} Nb4 {[%emt 0:00:20]} 11. Bf3 {[%emt 0:04:46]} Be6 {[%emt 0:05:50]} 12. Qd2 {[%emt 0:15:51]} Rc8 {[%emt 0:10:32]} 13. Rad1 {[%emt 0:05:36]} Qc7 {[%emt 0:11:36]} 14. Na1 {[%emt 0:04:16]} Bc4 {[%emt 0:17:59] Black is slightly better.} 15. Rfe1 {[%emt 0:07:43]} Rfd8 {[%emt 0:02:09]} 16. b3 {[%emt 0:06:49]} (16. Bg5 $15) 16... Ba6 {[%emt 0:03:02]} ({Black should try} 16... d5 $1 $17 {[%cal Rd5e4]} 17. bxc4 dxe4) 17. Nd5 $11 {[%emt 0:02:04]} Nfxd5 {[%emt 0:09:25]} 18. exd5 {[%emt 0:00:09]} Nxc2 {[%emt 0:02:40]} 19. Rc1 {[%emt 0:03:09]} Nxe1 {[%emt 0:00:32]} 20. Rxc7 {[%emt 0:00:05]} Nxf3+ {[%emt 0:00:13]} 21. gxf3 {[%emt 0:00:06]} Rxc7 {[%emt 0:00:16]} 22. Bb6 $1 {[%emt 0:00:24]} Rcc8 {[%emt 0:01:58]} 23. Bxd8 {[%emt 0:03:55]} Bxd8 {[%emt 0:00:00]} 24. Nc2 {[%emt 0:00:08]} h6 {[%emt 0:02:36]} 25. Ne3 {[%emt 0:04:10][%cal Of3f4]} Rc5 {[%emt 0:02:44]} 26. b4 {[%emt 0:02:48]} (26. f4 $5 exf4 27. Nf5 $14) 26... axb4 {[%emt 0:00:46]} 27. Qxb4 {[%emt 0:00:07]} Bg5 {[%emt 0:03:42]} 28. Qb3 {[%emt 0:08:39][%cal Oh2h4]} g6 {[%emt 0:02:05]} 29. Kg2 {[%emt 0:01:14]} (29. Qb6 $11 Bxe3 30. fxe3 Rxd5 31. h4) 29... Kg7 {[%emt 0:02:49]} (29... Kf8 $1 $15) 30. Nf1 {[%emt 0:05:07]} (30. Qb6 $11 Bxe3 31. fxe3 Rxd5 32. h4) 30... h5 $15 {[%emt 0:05:30]} 31. Ne3 {[%emt 0:05:25]} Bd8 {[%emt 0:04:56] Repels Qb6} (31... Kf8 $15) 32. Qb2 {[%emt 0:01:48]} Bg5 {[%emt 0:02:34]} 33. Qb3 {[%emt 0:00:38]} Bf4 {[%emt 0:01:30]} 34. Qd1 {[%emt 0:04:54]} Kf8 {[%emt 0:01:23]} 35. Qb3 {[%emt 0:01:50]} Ke7 {[%emt 0:00:22]} 36. Qb6 {[%emt 0:02:29]} Kd7 {[%emt 0:02:11]} 37. Qb3 {[%emt 0:01:27]} Bg5 {[%emt 0:01:17]} 38. Nc2 {[%emt 0:01:15]} Bd2 {[%emt 0:02:16]} ({Better is} 38... Bc1 $1 $15) 39. Na3 $1 $11 {[%emt 0:01:47]} Ba5 {[%emt 0:01:24]} 40. Nb5 {[%emt 0:00:46][%cal Of3f4]} b6 {[%emt 0:01:27]} 41. f4 {[%emt 0:03:11] Threatens to win with Qh3+.} exf4 {[%emt 0:10:01]} (41... Bb7 $11 42. Qh3+ Ke7) 42. Qh3+ $14 {[%emt 0:05:22]} f5 {[%emt 0:06:12][%cal Oa6b7]} 43. Qd3 {[%emt 0:00:43]} (43. Qf3 $14) 43... Bxb5 {[%emt 0:06:00]} ({Black should play} 43... Bc3 $1 $15) 44. axb5 $15 {[%emt 0:00:10][%mdl 4096] Endgame. KQ-KRB} Bc3 {[%emt 0:00:13] Prevents Qd4.} 45. Qe2 {[%emt 0:00:37]} Be5 $1 {[%emt 0:00:23]} (45... Rxd5 46. Qc4 Rc5 47. Qf7+ (47. Qxf4 Rxb5 48. Qg3 Bd4 $14) 47... Kd8 48. Qxg6 $16) 46. Qa2 {[%emt 0:01:36]} Bd4 {[%emt 0:01:28]} (46... Rxb5 $2 47. Qa4 $18) 47. Qa7+ {[%emt 0:01:11][%mdl 1024] White has compensation.} Rc7 {[%emt 0:00:16]} 48. Qa4 {[%emt 0:00:07]} Be5 {[%emt 0:01:59]} 49. Qa8 {[%emt 0:00:18] Qg8 is the strong threat.} Rc3 {[%emt 0:01:37]} 50. Qb7+ {[%emt 0:01:22]} Ke8 $2 {[%emt 0:00:22]} (50... Rc7 $16 51. Qb8 (51. Qxb6 g5 $11) 51... g5) 51. Qxb6 $4 {[%emt 0:00:55][%mdl 8192]} (51. Qh7 $18) 51... f3+ {[%emt 0:01:00]} 52. Kh3 {[%emt 0:00:11] [#]} g5 $1 {[%emt 0:01:13]} 53. Qb8+ {[%emt 0:00:37]} Kf7 {[%emt 0:02:13]} 54. b6 {[%emt 0:00:23]} Rc4 {[%emt 0:02:47][%csl Gg5][%cal Rc4h4]} 55. Qc7+ {[%emt 0:00:31]} Rxc7 {[%emt 0:00:10]} 56. bxc7 {[%emt 0:00:05] [#]} g4+ $2 {[%emt 0:00:14]} (56... Kg6 $1 {mates} 57. c8=B g4+ 58. Kh4 Bf6+ (58... Bxh2 {leads to mate.} 59. Bd7 Bg1 60. Bxf5+ Kxf5 61. Kxh5 Bxf2 62. Kh6 Bd4 63. Kh7 f2 64. Kg8 f1=Q 65. Kf8 Kf6 66. Ke8 Qf5 67. Kd8 Bb6+ 68. Ke8 Qc8#) 59. Kg3 h4+ 60. Kf4 Bg5#) 57. Kh4 $11 {[%emt 0:00:06]} Kg6 {[%emt 0:00:04] Weighted Error Value: White=0.24 (precise) /Black=0.26 (precise) .  Missed win:     	White=1     	---        Mistake:       	White=4     	Black=7      Inaccurate:     	White=4     	Black=5      OK:         	White=15    	Black=9      Best:        	White=3     	Black=3      Strong:       	White=2     	Black=1} ({Not} 57... Bf6+ $2 58. Kxh5 Ke7 59. c8=Q $18 (59. c8=B Bd4 $11)) 1/2-1/2

[Event "ECo-C Extraliga 2023-24"]
[Site "Slovakia"]
[Date "2024.02.24"]
[Round "7.5"]
[White "Pacher, Milan"]
[Black "Rigo, Zsolt"]
[Result "1-0"]
[ECO "E34"]
[WhiteElo "2365"]
[BlackElo "2399"]
[Annotator "RC"]
[PlyCount "157"]
[EventDate "2023.10.06"]
[EventType "team-tourn"]
[EventCountry "SVK"]
[SourceTitle "playchess.com"]
[Source "ChessBase"]
[SourceQuality "1"]
[TimeControl "40/5400+30:1800+30"]

1. d4 {[%emt 0:00:05]} Nf6 {[%emt 0:00:37]} 2. c4 {[%emt 0:00:03]} e6 {[%emt 0:00:13]} 3. Nc3 {[%emt 0:00:41]} Bb4 {[%emt 0:00:08]} 4. Qc2 {[%emt 0:00:12]} d5 {[%emt 0:01:21]} 5. cxd5 {[%emt 0:00:07]} Qxd5 {[%emt 0:01:26]} 6. Nf3 {[%emt 0:00:05]} Qf5 {[%emt 0:01:28]} 7. Qb3 {[%emt 0:00:06]} Nc6 {[%emt 0:03:04]} 8. Bd2 {[%emt 0:00:50]} a5 {[%emt 0:03:33]} 9. e3 {[%emt 0:02:17]} O-O {[%emt 0:10:14]} 10. Rc1 {[%emt 0:06:55]} e5 {[%emt 0:11:42]} 11. d5 {[%emt 0:04:34]} Ne7 {[%emt 0:07:03]} 12. Bc4 {[%emt 0:06:05]} e4 {[%emt 0:04:28]} 13. Nd4 {[%emt 0:00:07]} Qg5 {[%emt 0:00:59]} 14. g3 {[%emt 0:01:45]} Bxc3 {[%emt 0:06:04]} 15. Bxc3 {[%emt 0:02:24]} Nexd5 {[%emt 0:00:24]} 16. Ne2 {[%emt 0:11:45]} Nxc3 {[%emt 0:08:54]} 17. Qxc3 {[%emt 0:00:03]} Ng4 {[%emt 0:09:27]} 18. Nf4 {[%emt 0:02:22]} c6 {[%emt 0:00:38]} 19. h4 {[%emt 0:03:32]} Qe5 {[%emt 0:02:42]} 20. h5 {[%emt 0:01:33]} Qxc3+ {[%emt 0:04:05]} 21. Rxc3 {[%emt 0:00:02]} Rd8 {[%emt 0:00:48]} 22. Bb3 {[%emt 0:02:35]} h6 {[%emt 0:04:24]} 23. Rc5 {[%emt 0:02:28]} Kf8 {[%emt 0:01:56]} 24. O-O {[%emt 0:05:47]} Nf6 {[%emt 0:02:26]} 25. a4 {[%emt 0:06:47]} Rd6 {[%emt 0:00:41]} 26. Rfc1 {[%emt 0:01:02]} Bd7 {[%emt 0:00:23]} 27. R5c4 {[%emt 0:03:06]} Re8 {[%emt 0:00:33]} 28. Bd1 {[%emt 0:02:15]} Re5 {[%emt 0:05:57]} 29. b4 {[%emt 0:01:32]} axb4 {[%emt 0:00:16]} 30. Rxb4 {[%emt 0:00:03]} Bc8 {[%emt 0:00:07]} 31. Be2 {[%emt 0:02:17]} Rd2 {[%emt 0:00:54]} 32. Ra1 {[%emt 0:02:22]} Nd5 {[%emt 0:02:57]} 33. Nxd5 {[%emt 0:00:08]} Rdxd5 {[%emt 0:00:08]} 34. Ra2 {[%emt 0:02:18]} f5 {[%emt 0:02:24]} 35. Bc4 {[%emt 0:04:06]} Rc5 {[%emt 0:00:29]} 36. Rd2 {[%emt 0:01:18]} Ke7 {[%emt 0:00:45]} 37. Bg8 {[%emt 0:01:18]} Kf8 {[%emt 0:02:57]} 38. Rbd4 {[%emt 0:02:39]} Kxg8 {[%emt 0:01:08]} 39. Rd8+ {[%emt 0:00:02]} Kf7 {[%emt 0:00:08]} 40. Rxc8 {[%emt 0:00:04]} Rcd5 {[%emt 0:01:25]} 41. Rxd5 {[%emt 0:30:57]} cxd5 {[%emt 0:01:40]} 42. Rd8 {[%emt 0:00:00]} Kf6 {[%emt 0:04:02]} 43. Rd6+ {[%emt 0:00:00]} Re6 {[%emt 0:05:31]} 44. Rxd5 {[%emt 0:00:00]} Re7 {[%emt 0:00:56]} 45. Kg2 {[%emt 0:00:00]} Kg5 {[%emt 0:01:31]} 46. Kh3 {[%emt 0:00:00]} Kxh5 {[%emt 0:04:54]} 47. Rxf5+ {[%emt 0:00:00]} g5 {[%emt 0:03:24]} 48. Rb5 {[%emt 0:00:00]} Rf7 {[%emt 0:01:11]} 49. g4+ {[%emt 0:00:00]} Kg6 {[%emt 0:00:02]} 50. Kg2 {[%emt 0:00:00]} Re7 {[%emt 0:00:31]} 51. Rb6+ {[%emt 0:00:00]} Kg7 {[%emt 0:00:06]} 52. Kf1 {[%emt 0:00:00]} Kh7 {[%emt 0:01:31]} 53. Ke2 {[%emt 0:00:00]} Kg7 {[%emt 0:00:08]} 54. Kd2 {[%emt 0:00:00]} Rf7 {[%emt 0:01:16]} 55. Ke2 {[%emt 0:00:00]} Re7 {[%emt 0:00:02]} 56. Ke1 {[%emt 0:00:00]} Kh7 {[%emt 0:02:39]} 57. Kd2 {[%emt 0:00:00]} Rf7 {[%emt 0:00:04]} 58. Kc3 {[%emt 0:00:00]} Rxf2 {[%emt 0:00:23]} 59. Rxb7+ {[%emt 0:00:00]} Kg6 {[%emt 0:00:09]} 60. a5 {[%emt 0:00:00]} Ra2 {[%emt 0:05:51]} 61. Rb6+ {[%emt 0:00:00]} Kh7 {[%emt 0:01:33]} 62. a6 {[%emt 0:00:00]} Ra4 {[%emt 0:02:46]} 63. Kb3 {[%emt 0:00:00]} Ra1 {[%emt 0:00:06]} 64. Kc4 {[%emt 0:00:00]} h5 {[%emt 0:00:10]} 65. gxh5 {[%emt 0:00:00]} g4 {[%emt 0:00:02]} 66. Rg6 {[%emt 0:00:00]} g3 {[%emt 0:02:37]} 67. Kb5 {[%emt 0:00:00]} Ra3 {[%emt 0:00:38]} 68. Rxg3 {[%emt 0:00:00]} Kh6 {[%emt 0:00:05]} 69. Rh3 {[%emt 0:00:00]} Ra1 {[%emt 0:00:17]} 70. Kb6 {[%emt 0:00:00]} Rb1+ {[%emt 0:00:06]} 71. Kc6 {[%emt 0:00:00]} Ra1 {[%emt 0:00:05]} 72. Kb7 {[%emt 0:00:00]} Rb1+ {[%emt 0:00:05]} 73. Ka8 {[%emt 0:00:00]} Rb6 {[%emt 0:01:08]} 74. a7 {[%emt 0:00:00]} Rb3 {[%emt 0:00:24]} 75. Rg3 {[%emt 0:00:25]} Kxh5 {[%emt 0:00:21]} 76. Rg8 {[%emt 0:00:21]} Kh4 {[%emt 0:01:25]} 77. Re8 {[%emt 0:00:35]} Rb4 {[%emt 0:00:08]} 78. Rb8 {[%emt 0:00:04]} Ra4 {[%emt 0:01:41]} 79. Kb7 {[%emt 0:00:05]} 1-0

[Event "ECo-C Extraliga 2023-24"]
[Site "Slovakia"]
[Date "2024.02.24"]
[Round "7.5"]
[White "Kusa, Jakub"]
[Black "Vass, Frantisek"]
[Result "1-0"]
[ECO "D06"]
[WhiteElo "2350"]
[BlackElo "2310"]
[Annotator "TA"]
[PlyCount "71"]
[EventDate "2023.10.06"]
[EventType "team-tourn"]
[EventCountry "SVK"]
[SourceTitle "playchess.com"]
[Source "ChessBase"]
[SourceQuality "1"]
[TimeControl "40/5400+30:1800+30"]

{[%evp 12,71,61,54,68,62,51,46,83,87,93,89,95,115,296,296,280,275,340,332,318,338,302,196,181,132,143,129,471,458,484,450,712,712,808,775,1002,959,1162,1224,1262,1476,1484,1444,1412,1379,1478,1507,29985,29986,29978,29979,29988,29981,29990,29991,29991,29992,29992,29993,29993,29994]} 1. d4 {[%emt 0:00:06]} d5 {[%emt 0:00:17]} 2. c4 {[%emt 0:00:10]} Bf5 {[%emt 0:00:18]} 3. cxd5 {[%emt 0:00:44]} Bxb1 {[%emt 0:00:10]} 4. Qa4+ {[%emt 0:00:48]} c6 {[%emt 0:00:53]} 5. Rxb1 {[%emt 0:00:31]} Qxd5 {[%emt 0:00:16]} 6. Nf3 {[%emt 0:01:18]} Nd7 {[%emt 0:01:32]} 7. b4 {[%emt 0:01:30]} e6 {[%emt 0:04:18]} 8. e3 {[%emt 0:01:28]} Ngf6 {[%emt 0:00:57]} 9. Qc2 {[%emt 0:00:45]} Be7 {[%emt 0:02:49] White is slightly better.} 10. Bd3 {[%emt 0:00:49]} Qh5 {[%emt 0:01:56]} 11. Bd2 {[%emt 0:02:12]} O-O {[%emt 0:00:30]} 12. h3 {[%emt 0:00:37]} Rfd8 $2 {[%emt 0:07:49] [#]} (12... Bd6 $16 {is a better defense.}) 13. Ke2 $1 $18 {[%emt 0:01:30]} Nf8 {[%emt 0:38:13]} 14. e4 {[%emt 0:07:03][%cal Be3e4,Be4e5][%mdl 32] Wards off Qd5} N6d7 {[%emt 0:06:47]} (14... Rxd4 15. g4 $18) 15. g4 {[%emt 0:04:51]} Qg6 {[%emt 0:00:23]} 16. e5 {[%emt 0:01:17]} f5 {[%emt 0:00:22]} 17. gxf5 {[%emt 0:07:56]} Qh5 {[%emt 0:03:11]} 18. Rbg1 {[%emt 0:04:40]} (18. Rhg1 $18 exf5 19. Bxf5) 18... exf5 $16 {[%emt 0:02:59]} 19. Bg5 $36 {[%emt 0:02:35][%mdl 2048] White is really pushing. White is more active.} Bxg5 $4 {[%emt 0:01:44][%mdl 8192] This move loses the game for Black.} (19... Nb6 $16 {is tougher.}) 20. Rxg5 $18 {[%emt 0:00:19]} Qh6 {[%emt 0:00:33]} 21. Rhg1 {[%emt 0:01:08] Strongly threatening Rxg7+.} (21. Rxf5 Nb6 $16) 21... Kh8 {[%emt 0:11:52]} (21... Nb6 $142 22. Rxg7+ (22. Rxf5 a5 $18) (22. Bxf5 Nd5 $18) 22... Qxg7 23. Rxg7+ Kxg7) 22. Bxf5 {[%emt 0:01:55]} g6 {[%emt 0:03:32] [#]} 23. h4 $1 {[%emt 0:01:20][%cal Bh3h4,Bh4h5][%mdl 32]} Nb6 {[%emt 0:00:58][%cal Bd7b6,Bb6d5,Bd5e7][%mdl 32] [#]} (23... Re8 24. h5) 24. h5 $1 {[%emt 0:00:53][%mdl 512]} Nd5 {[%emt 0:00:28] [#]} (24... Rd7 25. Bxd7) 25. Qc1 $1 {[%emt 0:01:02]} Ne7 {[%emt 0:01:17]} 26. hxg6 {[%emt 0:00:37]} Nfxg6 {[%emt 0:02:17]} 27. Bxg6 {[%emt 0:01:30]} Nxg6 {[%emt 0:00:26]} 28. Rh1 {[%emt 0:01:04]} Qg7 {[%emt 0:00:54]} 29. Nh4 {[%emt 0:00:28]} Kg8 {[%emt 0:04:13][%cal Bh8g8,Bg8h7,Bh7h6][%mdl 32]} 30. Nxg6 {[%emt 0:00:37] White mates.} hxg6 {[%emt 0:00:04]} 31. Rhg1 {[%emt 0:00:47]} Kh7 {[%emt 0:00:53]} 32. Qf4 {[%emt 0:01:57]} Rd5 {[%emt 0:02:34]} 33. Qh4+ {[%emt 0:00:53]} Qh6 {[%emt 0:00:07]} 34. Qxh6+ {[%emt 0:00:14]} Kxh6 {[%emt 0:00:06]} 35. Rxg6+ {[%emt 0:00:08]} Kh7 {[%emt 0:00:10]} 36. R6g4 {[%emt 0:00:17] Weighted Error Value: White=0.11 (very precise) /Black=0.57.  Loses game:     	---       	Black=2      Mistake:       	White=1     	Black=1      Inaccurate:     	White=1     	Black=1      OK:         	White=5     	Black=4      Best:        	White=3     	Black=2      Strong:       	White=1     	---} 1-0

[Event "ECo-C Extraliga 2023-24"]
[Site "Slovakia"]
[Date "2024.02.24"]
[Round "7.5"]
[White "Mikrut, Dariusz"]
[Black "Farkas, Gabor"]
[Result "0-1"]
[ECO "D36"]
[WhiteElo "2317"]
[BlackElo "2279"]
[Annotator "TA"]
[PlyCount "66"]
[EventDate "2023.10.06"]
[EventType "team-tourn"]
[EventCountry "SVK"]
[SourceTitle "playchess.com"]
[Source "ChessBase"]
[SourceQuality "1"]
[TimeControl "40/5400+30:1800+30"]

{[%evp 11,66,19,24,20,31,12,21,15,19,21,20,15,0,0,-4,-11,-14,-19,0,-4,25,0,0,-31,-27,-64,-79,-72,-41,-47,-44,-34,-32,-108,-107,-107,-121,-115,-83,-112,-113,-141,-128,-136,-87,-91,-88,-289,-282,-287,-293,-333,-333,-319,-325,-484,-466]} 1. d4 {[%emt 0:00:02]} d5 {[%emt 0:00:27]} 2. c4 {[%emt 0:00:22]} e6 {[%emt 0:00:08]} 3. cxd5 {[%emt 0:02:04]} exd5 {[%emt 0:00:07]} 4. Nc3 {[%emt 0:00:05]} c6 {[%emt 0:01:57]} 5. Qc2 {[%emt 0:00:40]} Nf6 {[%emt 0:01:18]} 6. Bg5 {[%emt 0:00:09]} Be6 {[%emt 0:01:06]} 7. e3 {[%emt 0:00:38]} Nbd7 {[%emt 0:00:48]} 8. Bd3 {[%emt 0:01:45]} h6 {[%emt 0:00:40]} 9. Bh4 {[%emt 0:00:26] The position is equal.} g5 {[%emt 0:03:25]} 10. Bg3 {[%emt 0:00:47]} Nh5 {[%emt 0:02:40]} 11. Nge2 {[%emt 0:01:31]} Nxg3 {[%emt 0:00:12]} 12. Nxg3 {[%emt 0:00:39]} h5 {[%emt 0:00:06]} 13. O-O-O {[%emt 0:14:53]} h4 {[%emt 0:02:08]} 14. Nge2 {[%emt 0:02:37]} Bg7 {[%emt 0:20:25]} 15. f4 {[%emt 0:06:40][%cal Bf2f4,Bf4f5][%mdl 32] [#] aiming for f5.} Nb6 {[%emt 0:11:45]} 16. f5 {[%emt 0:08:50]} Bd7 {[%emt 0:00:22]} 17. Rhf1 {[%emt 0:12:24]} Qc7 {[%emt 0:02:46]} 18. h3 {[%emt 0:15:31]} O-O-O {[%emt 0:01:37]} 19. Kb1 {[%emt 0:03:57]} Rhe8 {[%emt 0:01:36]} 20. e4 {[%emt 0:00:42]} dxe4 {[%emt 0:01:05]} 21. Nxe4 {[%emt 0:00:46]} Nd5 {[%emt 0:01:48] ...Ne3 would now be deadly.} 22. Nxg5 {[%emt 0:01:22]} (22. Qd2 $15) 22... Ne3 $17 {[%emt 0:02:11][%csl LRc2,LRd1,LRf1,LRg2] Black is more active.} 23. Qb3 {[%emt 0:02:15]} Nxd1 {[%emt 0:00:49]} (23... Nxg2 24. Rf2 (24. Nxf7 Ne3 $14) (24. Qxf7 Bh6 $11) 24... Ne3 25. Rg1 $16) 24. Qxd1 {[%emt 0:01:19] [#]} Rf8 $36 {[%emt 0:05:08][%mdl 2048] Black is really pushing.} 25. Qb3 {[%emt 0:03:28][%cal Of5f6]} Be8 {[%emt 0:05:41]} 26. f6 {[%emt 0:02:16]} Bh6 {[%emt 0:00:45]} 27. Nf3 {[%emt 0:00:39]} Bd7 {[%emt 0:01:25]} ({Better is} 27... Kb8 28. Qc3 Rh8) 28. Nxh4 {[%emt 0:00:07]} Bg5 {[%emt 0:01:21]} 29. g3 {[%emt 0:11:09] Loses the game.} (29. Nf3 $17 Bxf6 30. Nd2) 29... Bxh3 $19 {[%emt 0:03:13]} 30. Bf5+ {[%emt 0:00:25]} Bxf5+ {[%emt 0:00:12]} 31. Rxf5 {[%emt 0:00:09]} Bxh4 {[%emt 0:01:08]} 32. gxh4 {[%emt 0:00:01]} Rfe8 {[%emt 0:01:59]} 33. Qf3 {[%emt 0:04:53]} (33. Rf2 {is a better defense.}) 33... Qh2 {[%emt 0:02:15][%csl LRe2,LRh4] Weighted Error Value: White=0.31/Black=0.06 (flawless) .  Loses game:     	White=1     	---        Mistake:       	White=2     	Black=1      Inaccurate:     	White=3     	Black=2      OK:         	White=12    	Black=20     Best:        	---       	Black=2} 0-1